fUST/lending_fUST_20250310
["ID","MTS","AMOUNT","RATE_DAILY","PERIOD"]
[355799741,1741577444640,-812.89081,0.00046778,120]
[355799742,1741577444649,-151.0,0.00046778,120]
[355799743,1741577444659,-169.076238,0.00046778,120]
[355799744,1741577444668,-169.076238,0.00046778,120]
[355799745,1741577444677,-276.68914,0.00046778,120]
[355799746,1741577444686,-244.682431,0.00046798,120]
[355799747,1741577444696,-244.682431,0.00046798,120]
[355799748,1741577444705,-151.0,0.00046798,120]
[355799749,1741577444715,-153.45,0.00047,30]
[355799750,1741577444725,-1474.1895803,0.0004739,4]
[355799751,1741577444734,-151.0,0.00047503,120]
[355799752,1741577444743,-163.726904,0.00047503,120]
[355799753,1741577444753,-169.076238,0.00047503,120]
[355799754,1741577444762,-169.076238,0.00047503,120]
[355799755,1741577444772,-151.0,0.00047513,120]
[355799756,1741577444781,-155.65507607,0.00047913,20]
[355799757,1741577444791,-2000.0,0.00048,90]
[355799758,1741577444807,-22568.81560297,0.00048,120]
[355799759,1741577444817,-163.76718528,0.00048357,2]
[355799760,1741577444832,-29247.5940239,0.00048363,4]
[355799761,1741577444843,-55555.0,0.00048373,120]
[355799762,1741577444855,-14623.7970119,0.0004847,4]
[355799763,1741577444864,-1898.0,0.0004848,120]
[355799764,1741577444875,-1898.0,0.0004848,120]
[355799765,1741577444886,-1898.0,0.0004848,120]
[355799766,1741577444895,-1898.0,0.0004848,120]
[355799767,1741577444905,-1898.0,0.0004848,120]
[355799768,1741577444915,-1898.0,0.0004848,120]
[355799769,1741577444924,-1898.0,0.0004848,120]
[355799770,1741577444933,-1898.0,0.0004848,120]
[355799771,1741577444943,-1898.0,0.0004848,120]
[355799772,1741577444952,-1898.0,0.0004848,120]
[355799773,1741577444962,-244.682431,0.0004849,120]
[355799774,1741577444971,-244.682431,0.0004849,120]
[355799775,1741577444981,-151.0,0.0004849,120]
[355799776,1741577444990,-151.0,0.0004849,120]
[355799777,1741577444999,-341.67512,0.0004849,30]
[355799778,1741577445009,-341.67512,0.0004849,30]
[355799779,1741577445018,-151.0,0.0004849,90]
[355799780,1741577445028,-151.0,0.0004849,120]
[355799781,1741577445037,-250.044986,0.0004849,120]
[355799782,1741577445046,-250.044986,0.0004849,120]
[355799783,1741577445055,-250.044986,0.0004849,120]
[355799784,1741577445065,-250.044986,0.0004849,120]
[355799785,1741577445074,-812.89081,0.0004849,120]
[355799786,1741577445083,-812.89081,0.0004849,120]
[355799787,1741577445093,-151.0,0.0004849,120]
[355799788,1741577445102,-812.89081,0.0004849,120]
[355799789,1741577445111,-812.89081,0.0004849,120]
[355799790,1741577445120,-29247.5940239,0.0004849,4]
[355799791,1741577445130,-70128.05512125,0.000485,120]
[355799792,1741577445139,-5000.0,0.000485,120]
[355799793,1741577445149,-244.682431,0.000485,120]
[355799794,1741577445158,-244.682431,0.000485,120]
[355799795,1741577445167,-151.0,0.000485,120]
[355799796,1741577445178,-203.135811,0.000485,120]
[355799797,1741577445187,-341.67512,0.000485,30]
[355799798,1741577445196,-341.67512,0.000485,30]
[355799799,1741577445206,-151.0,0.000485,90]
[355799800,1741577445322,-151.0,0.000485,120]
[355799801,1741577445332,-250.044986,0.000485,120]
[355799802,1741577445342,-250.044979,0.000485,120]
[355799803,1741577445351,-812.89081,0.000485,120]
[355799804,1741577445361,-812.8908,0.000485,120]
[355799805,1741577445371,-2288.41,0.000485,30]
[355799806,1741577445380,-761.45,0.00049,2]
[355799807,1741577445390,-156.68,0.000492,45]
[355799808,1741577445399,-244.682431,0.00049305,120]
[355799809,1741577445408,-244.682431,0.00049305,120]
[355799810,1741577445418,-151.0,0.00049305,120]
[355799811,1741577445427,-341.67512,0.00049305,30]
[355799812,1741577445437,-341.67512,0.00049305,30]
[355799813,1741577445446,-151.0,0.00049305,90]
[355799814,1741577445456,-151.0,0.00049305,120]
[355799815,1741577445466,-29247.5940239,0.00049305,4]
[355799816,1741577445476,-244.682431,0.00049315,120]
[355799817,1741577445486,-244.682431,0.00049315,120]
[355799818,1741577445495,-151.0,0.00049315,120]
[355799819,1741577445505,-341.67512,0.00049315,30]
[355799820,1741577445515,-341.67512,0.00049315,30]
[355799821,1741577445524,-151.0,0.00049315,90]
[355799822,1741577445534,-50000.0,0.00049315,30]
[355799823,1741577445544,-155.65691676,0.00049395,20]
[355799824,1741577445553,-5000.0,0.0005,120]
[355799825,1741577445563,-502.15335997,0.00050146,10]
[355799826,1741577445573,-500.0,0.00050373,10]
[355799827,1741577445583,-244.682431,0.0005049,120]
[355799828,1741577445592,-244.682431,0.0005049,120]
[355799829,1741577445603,-151.0,0.0005049,120]
[355799830,1741577445612,-10000.0,0.000505,120]
[355799831,1741577445622,-341.67512,0.000505,30]
[355799833,1741577445632,-341.675128,0.000505,30]
[355799834,1741577445642,-290.317632,0.000505,90]
[355799835,1741577445652,-151.576029,0.00050662,120]
[355799836,1741577445661,-151.0,0.00050662,120]
[355799837,1741577445671,-489.53624011,0.00050684,7]
[355799838,1741577445680,-183.967461,0.000507,2]
[355799839,1741577445690,-14623.7970119,0.0005077,4]
[355799840,1741577445699,-1898.0,0.00050799,120]
[355799841,1741577445710,-1898.0,0.00050799,120]
[355799842,1741577445722,-1898.0,0.00050799,120]
[355799843,1741577445732,-1898.0,0.00050799,120]
[355799844,1741577445742,-1898.0,0.00050799,120]
[355799845,1741577445752,-1898.0,0.00050799,120]
[355799846,1741577445762,-153.45,0.000508,30]
[355799847,1741577445772,-244.682431,0.00050807,120]
[355799848,1741577445783,-244.682422,0.00050807,120]
[355799850,1741577445792,-8027.92571733,0.00050822,2]
[355799851,1741577445801,-159.10416054,0.00050822,2]
[355799852,1741577445811,-500.0,0.0005086,60]
[355799853,1741577445820,-508.21556026,0.0005086,60]
[355799854,1741577445830,-987.0,0.0005087,78]
[355799855,1741577445840,-14623.7970119,0.00050896,4]
[355799856,1741577445850,-1000.0,0.000509,120]
[355799857,1741577445860,-151.0,0.00050916,120]
[355799858,1741577445870,-151.0,0.00050916,120]
[355799859,1741577445882,-151.0,0.00050916,120]
[355799860,1741577445892,-151.0,0.00050916,120]
[355799861,1741577445902,-151.0,0.00050916,120]
[355799862,1741577445912,-151.0,0.00050916,120]
[355799863,1741577445921,-151.0,0.00050916,120]
[355799864,1741577445931,-205.638543,0.00050916,120]
[355799865,1741577445940,-205.638543,0.00050916,120]
[355799866,1741577445949,-205.638543,0.00050916,120]
[355799867,1741577445961,-205.638543,0.00050916,120]
[355799868,1741577445973,-205.638543,0.00050916,120]
[355799869,1741577445982,-205.638543,0.00050916,120]
[355799870,1741577445992,-205.638543,0.00050916,120]
[355799871,1741577446002,-500.0,0.0005092,15]
[355799872,1741577446012,-123275.70666241,0.00050922,7]
[355799873,1741577446022,-3059.24193276,0.00050922,2]
[355799874,1741577446032,-90369.49981546,0.00050922,2]
[355799875,1741577446042,-1744.10366207,0.00050922,120]
[355799876,1741577446052,-20000.0,0.00050922,2]
[355799877,1741577446062,-16694.9404185,0.00050922,2]
[355799878,1741577446072,-300.0,0.00050922,2]
[355799879,1741577446083,-802.65294468,0.00050922,2]
[355799880,1741577446092,-1176.57995071,0.00050922,32]
[355799881,1741577446102,-252.5710473,0.00050922,2]
[355799882,1741577446112,-294.29241611,0.00050922,2]
[355799883,1741577446122,-815.1177186,0.00050922,2]
[355799884,1741577446133,-1645.39797188,0.00050922,2]
[355799885,1741577446143,-47026.29337218,0.00050922,120]
[355799886,1741577446153,-324.16036051,0.00050922,2]
[355799887,1741577446163,-1198.84553071,0.00050922,2]
[355799888,1741577446174,-289.30521577,0.00050922,2]
[355799889,1741577446184,-18478.443388,0.00050922,2]
[355799890,1741577446194,-4146.54425863,0.00050922,7]
[355799891,1741577446204,-5823.03998122,0.00050922,2]
[355799892,1741577446213,-300.60755403,0.00050922,2]
[355799893,1741577446226,-1384.9033783,0.00050922,2]
[355799894,1741577446236,-581.79732939,0.00050922,2]
[355799895,1741577446246,-5844.42764583,0.00050922,2]
[355799896,1741577446256,-31534.14387692,0.00050922,2]
[355799897,1741577446392,-12056.09188581,0.00050922,2]
[355799898,1741577446405,-13682.5982409,0.00050922,2]
[355799899,1741577446415,-15793.09146512,0.00050922,120]
[355799900,1741577446425,-502.96618792,0.00050922,2]
[355799901,1741577446435,-17721.90884389,0.00050922,7]
[355799902,1741577446515,-3262.59799749,0.00050922,7]
[355799903,1741577446524,-2406.90250251,0.00050922,2]
[355799904,1741577446536,-18642.25,0.00050922,2]
[355799905,1741577446548,-5477.32148345,0.00050922,2]
[355799906,1741577446674,-4206.21136439,0.00050922,2]
[355799907,1741577446984,-3797.68889387,0.00050922,2]
[355799908,1741577446996,-14181.00178318,0.00050922,2]
[355799909,1741577447008,-78688.70479872,0.00050922,2]
[355799910,1741577447020,-3072.82386487,0.00050922,2]
[355799911,1741577447036,-497.74401456,0.00050922,2]
[355799912,1741577447276,-276.9784337,0.00050922,2]
[355799913,1741577447287,-1575.79160852,0.00050922,2]
[355799914,1741577464454,270.54,0.0002501,2]
[355799917,1741578402096,-500.0,0.00034458,2]
[355799918,1741578402116,-160.31494633,0.00034458,7]
[355799919,1741578402141,-157.74398815,0.00034458,2]
[355799950,1741578632640,-77.63472211,0.00034458,2]
[355799951,1741578632650,-24900.0,0.00034459,2]
[355799952,1741578632660,-168.630721,0.00035164,14]
[355799953,1741578632670,-168.630721,0.00035164,14]
[355799954,1741578632680,-1603.36044574,0.00035516,2]
[355799955,1741578632689,-7434.35986666,0.00035616,2]
[355799956,1741578634992,204.40897,0.00027,120]
[355799984,1741578643593,-1005.79607984,0.00035616,2]
[355799990,1741578646374,-529.86775273,0.00035616,2]
[355799991,1741578646387,-11029.97630077,0.00035616,2]
[355799992,1741578646396,-168.630721,0.00035616,14]
[355799993,1741578646406,-500.0,0.00035616,2]
[355799994,1741578646416,-272.0532045,0.00035616,2]
[355799995,1741578646426,-168.630721,0.00035754,14]
[355799996,1741578646436,-415.196158,0.0003589,2]
[355799997,1741578646445,-426.75653135,0.000362,98]
[355799998,1741578646455,-168.630721,0.0003714,14]
[355799999,1741578646465,-168.630721,0.0003714,14]
[355800000,1741578646474,-168.630721,0.00037168,14]
[355800001,1741578646484,-168.630721,0.00037182,14]
[355800002,1741578646493,-168.630721,0.00037182,14]
[355800003,1741578646502,-166.0,0.0003888,120]
[355800004,1741578646512,-168.630721,0.00038891,14]
[355800005,1741578646521,-168.630721,0.00038891,14]
[355800006,1741578646530,-1531.05843431,0.00038912,2]
[355800009,1741579610261,-206.66714244,0.00033516,2]
[355800010,1741579610286,-249.17196259,0.00036031,2]
[355800051,1741579832667,-150.0,0.00033931,2]
[355800052,1741579832680,-500.0,0.00034647,2]
[355800053,1741579832694,-444.43635,0.0003589,2]
[355800054,1741579832708,-6324.96760661,0.00036031,2]
[355800055,1741579832722,-341.40522508,0.000368,101]
[355800056,1741579832734,-1457.81354236,0.000369,7]
[355800057,1741579832748,-557.87866874,0.00036926,15]
[355800058,1741579832761,-500.0,0.00036926,15]
[355800059,1741579832776,-500.0,0.00036926,15]
[355800060,1741579832790,-500.0,0.00036926,2]
[355800061,1741579832804,-500.0,0.00036926,15]
[355800062,1741579832819,-500.0,0.00036926,15]
[355800063,1741579832832,-500.0,0.00036926,2]
[355800064,1741579832846,-260.75677484,0.00036926,15]
[355800065,1741579832859,-629.40253899,0.00036926,15]
[355800066,1741579832873,-500.0,0.00036926,15]
[355800067,1741579832886,-500.0,0.00036926,15]
[355800068,1741579832899,-500.0,0.00036926,2]
[355800069,1741579832912,-500.0,0.00036926,15]
[355800070,1741579832926,-500.0,0.00036926,15]
[355800071,1741579832939,-500.0,0.00036926,2]
[355800072,1741579832952,-500.0,0.00036926,15]
[355800073,1741579832965,-500.0,0.00036926,15]
[355800074,1741579832979,-500.0,0.00036926,2]
[355800075,1741579832993,-67.0560283,0.00036926,15]
[355800076,1741579833440,-432.9439717,0.00036926,15]
[355800077,1741579833450,-25.78432786,0.00036926,2]
[355800078,1741579833467,-474.21567214,0.00036926,2]
[355800079,1741579833477,-500.0,0.00036926,15]
[355800080,1741579833488,-500.0,0.00036926,2]
[355800081,1741579833497,-500.0,0.00036926,15]
[355800082,1741579833507,-500.0,0.00036926,2]
[355800083,1741579833517,-300.0,0.00036926,15]
[355800084,1741579833531,-500.0,0.00036926,2]
[355800085,1741579833541,-477.24418539,0.00036926,2]
[355800086,1741579833551,-500.0,0.00036926,15]
[355800087,1741579833561,-500.0,0.00036926,2]
[355800088,1741579833571,-500.0,0.00036926,15]
[355800089,1741579833581,-500.0,0.00036926,15]
[355800090,1741579833591,-500.0,0.00036926,2]
[355800091,1741579833601,-500.0,0.00036926,2]
[355800092,1741579833611,-500.0,0.00036926,15]
[355800093,1741579833620,-15419.25213375,0.00036928,2]
[355800094,1741579833636,-380.11369182,0.00036928,2]
[355800116,1741579840530,-4200.63417443,0.00036928,2]
[355800117,1741579840543,-24900.0,0.00036929,2]
[355800118,1741579840553,-500.0,0.00037,5]
[355800119,1741579840562,-500.0,0.00037,5]
[355800120,1741579840572,-500.0,0.00037,5]
[355800121,1741579840582,-500.0,0.00037,5]
[355800122,1741579840591,-500.0,0.00037,2]
[355800123,1741579840601,-9880.97,0.000383,15]
[355800124,1741579840610,-964.6784362,0.000388,2]
[355800125,1741579840620,-160.0,0.00038835,2]
[355800126,1741579840630,-13021.25514277,0.00038835,2]
[355800127,1741579840643,-152.54,0.000389,7]
[355800128,1741579840653,-162.96967541,0.000389,7]
[355800129,1741579840662,-150.0,0.00038931,2]
[355800130,1741579840672,-194.3335766,0.00039178,120]
[355800131,1741579840683,-313.3548702,0.00039683,2]
[355800132,1741579840693,-3013.90808369,0.0003999,3]
[355800133,1741579840703,-3999.194,0.0004,80]
[355800134,1741579840717,-160.0,0.00041,14]
[355800135,1741579840727,-444.43635,0.00041211,2]
[355800136,1741579840736,-1000.0,0.00042479,10]
[355800137,1741579840745,-1000.0,0.00042479,10]
[355800138,1741579840755,-1000.0,0.00042479,10]
[355800139,1741579840764,-500.0,0.00042479,2]
[355800140,1741579840774,-1871.59,0.00043835,120]
[355800141,1741579840783,-1871.59,0.00043972,120]
[355800142,1741579840793,-1871.59,0.00044109,120]
[355800143,1741579840803,-1871.59,0.00044246,120]
[355800144,1741579840813,-1871.59,0.00044383,120]
[355800145,1741579840823,-1871.59,0.0004452,120]
[355800146,1741579840833,-1871.59,0.00044657,120]
[355800147,1741579840842,-1871.59,0.00044794,120]
[355800148,1741579840851,-1871.59,0.00044931,120]
[355800149,1741579840860,-9018.44043297,0.00045,7]
[355800150,1741579840870,-160.0,0.00045,7]
[355800151,1741579840879,-186.17,0.00045,30]
[355800152,1741579840889,-1871.59,0.00045068,120]
[355800153,1741579840899,-1871.59,0.00045205,120]
[355800154,1741579840910,-6152.53,0.00045322,10]
[355800155,1741579840919,-3013.90808369,0.00045332,3]
[355800156,1741579840929,-1871.59,0.00045342,120]
[355800157,1741579840939,-1871.59,0.00045479,120]
[355800158,1741579840948,-1871.59,0.00045616,120]
[355800159,1741579840958,-1871.59,0.00045753,120]
[355800160,1741579840967,-1871.59,0.0004589,120]
[355800161,1741579840977,-1871.59,0.00046027,120]
[355800162,1741579840987,-1871.59,0.00046164,120]
[355800163,1741579840997,-1871.59,0.00046301,120]
[355800164,1741579841006,-1871.59,0.00046438,120]
[355800165,1741579841016,-444.43635,0.00046532,2]
[355800166,1741579841026,-1871.59,0.00046575,120]
[355800167,1741579841035,-3000.0,0.00046575,10]
[355800168,1741579841045,-1871.59,0.00046712,120]
[355800169,1741579841055,-1871.59,0.00046849,120]
[355800170,1741579841064,-1871.71048934,0.00046986,120]
[355800171,1741579841074,-1814.35,0.00048489,120]
[355800172,1741579841083,-4060.20008641,0.000485,120]
[355800173,1741579841096,-7128.99991359,0.000485,120]
[355800174,1741579841105,-3013.90808369,0.0004899,4]
[355800175,1741579841114,-1392.0,0.00049,120]
[355800176,1741579841124,-725.4636568,0.00049,5]
[355800177,1741579841134,-769.91,0.000492,2]
[355800178,1741579841143,-154.73,0.000493,45]
[355800179,1741579841153,-154.73,0.000493,45]
[355800180,1741579841162,-154.73,0.000493,45]
[355800181,1741579841172,-1734.9260432,0.00049903,4]
[355800182,1741579841182,-160.0,0.00050469,2]
[355800183,1741579841192,-6159.85284166,0.000505,120]
[355800184,1741579841202,-176.64585935,0.00050579,2]
[355800185,1741579841212,-176.64585932,0.00050655,2]
[355800186,1741579841221,-1010.03882007,0.00050659,2]
[355800187,1741579841232,-18083.4485021,0.00050679,4]
[355800188,1741579841242,-61667.89842995,0.00050689,2]
[355800189,1741579841254,-457.5,0.00050689,2]
[355800190,1741579841266,-582.04603108,0.00050689,2]
[355800202,1741579843747,-12046.64077148,0.00050689,2]
[355800203,1741579843759,-1699.10296557,0.00050689,2]
[355800204,1741579843798,-50.64878945,0.00050689,2]
[355800205,1741579843813,-315.929,0.00050689,2]
[355800206,1741579843829,-376.86986144,0.00050689,2]
[355800211,1741579846458,-1288.26418683,0.00050689,2]
[355800212,1741579846564,-7240.34132159,0.00050689,2]
[355800213,1741579846576,-604.47622224,0.00050689,2]
[355800233,1741580472489,-200.0,0.000252,2]
[355800234,1741580555729,1409.21975775,0.000259,4]
[355800235,1741580726552,1362.24576568,0.000259,4]
[355800237,1741580892318,1316.83757351,0.000259,4]
[355800239,1741580925795,19090.97307785,0.0001,7]
[355800246,1741580972137,-500.0,0.00025199,2]
[355800247,1741580972160,-251.1951972,0.00025199,2]
[355800248,1741580972182,-500.0,0.00025199,2]
[355800249,1741580972205,-500.0,0.00025199,2]
[355800250,1741580972229,-200.0,0.00025199,2]
[355800251,1741580972251,-160.3574473,0.00025199,2]
[355800252,1741580972274,-376.34458525,0.00025199,2]
[355800253,1741580972294,-11863.58347987,0.000252,2]
[355800293,1741581032823,-11498.41652013,0.000252,2]
[355800294,1741581032833,-500.0,0.00026848,2]
[355800296,1741581032843,-3810.86504349,0.0002799,2]
[355800298,1741581032853,-500.0,0.00034537,2]
[355800300,1741581032862,-1486.35000182,0.00035516,2]
[355800302,1741581032872,-500.0,0.00035616,2]
[355800305,1741581032881,-402.770898,0.0003589,2]
[355800308,1741581032891,-402.770898,0.00041211,2]
[355800310,1741581032900,-1141.04542511,0.00043,7]
[355800349,1741581038541,-8535.17607205,0.00043,7]
[355800350,1741581038552,-24900.0,0.00044188,2]
[355800351,1741581038562,-650.0,0.000442,15]
[355800352,1741581038572,-507.76126586,0.000442,7]
[355800353,1741581038582,-500.0,0.000442,10]
[355800354,1741581038592,-500.0,0.000442,10]
[355800355,1741581038602,-20000.0,0.000442,2]
[355800356,1741581038612,-402.770898,0.00046532,2]
[355800357,1741581038622,-3000.0,0.00046575,10]
[355800358,1741581038632,-154.26,0.000493,45]
[355800359,1741581038642,-154.26,0.000493,45]
[355800360,1741581038651,-154.26,0.000493,45]
[355800361,1741581038661,-154.26,0.000493,45]
[355800362,1741581038671,-559.0265757,0.00049632,30]
[355800363,1741581038680,-504.8312058,0.00049632,30]
[355800364,1741581038690,-1000.0,0.00049679,10]
[355800365,1741581038700,-1000.0,0.00049679,10]
[355800366,1741581038710,-1301.1945324,0.00049903,4]
[355800367,1741581038720,-5741.46071541,0.0004999,4]
[355800368,1741581038729,-5134.8,0.0004999,10]
[355800369,1741581038739,-3882.99,0.00049999,120]
[355800370,1741581038748,-1000000.0,0.0005,120]
[355800371,1741581038758,-13999.999999,0.0005,2]
[355800372,1741581038768,-9091.65440648,0.0005,2]
[355800373,1741581038779,-10900.0,0.0005,30]
[355800374,1741581038788,-499.779999,0.0005,120]
[355800375,1741581038798,-261.66155287,0.00050211,2]
[355800376,1741581038808,-176.64585932,0.00050438,2]
[355800377,1741581038818,-5741.46071541,0.00050479,4]
[355800378,1741581038828,-55555.0,0.00050489,120]
[355800379,1741581038838,-5000.0,0.000505,120]
[355800380,1741581038848,-300.0,0.000505,120]
[355800381,1741581038858,-5000.0,0.000505,120]
[355800382,1741581038868,-5741.46071541,0.00050538,4]
[355800383,1741581038878,-50000.0,0.00050548,30]
[355800384,1741581038887,-909.63242627,0.00050548,15]
[355800385,1741581038897,-5741.46071541,0.00050569,4]
[355800386,1741581038906,-5741.46071541,0.00050569,4]
[355800387,1741581038917,-59594.5125559,0.00050579,71]
[355800388,1741581038926,-9205.818633,0.00050579,71]
[355800389,1741581038936,-28707.3035771,0.00050579,4]
[355800390,1741581038945,-151.0,0.00050589,120]
[355800391,1741581038955,-151.0,0.00050589,120]
[355800392,1741581038965,-151.0,0.00050589,120]
[355800393,1741581038975,-151.0,0.00050589,120]
[355800394,1741581038985,-151.0,0.00050589,10]
[355800395,1741581038995,-151.0,0.00050589,110]
[355800396,1741581039005,-151.0,0.00050589,120]
[355800397,1741581039015,-203.056504,0.00050589,120]
[355800398,1741581039025,-151.0,0.00050589,120]
[355800399,1741581039037,-151.0,0.00050589,120]
[355800400,1741581039047,-151.0,0.00050589,120]
[355800401,1741581039057,-150051.23635071,0.00050589,2]
[355800404,1741581040725,-32996.4,0.00050589,2]
[355800437,1741581999100,2986.27,0.00027,3]
[355800438,1741582002105,-400.0,0.00037587,2]
[355800439,1741582002127,-6463.5244501,0.00039037,2]
[355800440,1741582002149,-273.12418008,0.00040094,120]
[355800441,1741582002172,-343.0,0.00040194,5]
[355800442,1741582002195,-251.1951972,0.00042999,31]
[355800443,1741582002219,-500.0,0.00042999,2]
[355800444,1741582002242,-500.0,0.00042999,31]
[355800445,1741582002266,-376.34458525,0.00042999,31]
[355800446,1741582002290,-500.0,0.00042999,2]
[355800447,1741582002314,-500.0,0.00042999,2]
[355800448,1741582002341,-500.0,0.00042999,31]
[355800449,1741582002365,-500.0,0.00042999,2]
[355800450,1741582002390,-500.0,0.00042999,2]
[355800451,1741582002416,-500.0,0.00042999,2]
[355800452,1741582002439,-500.0,0.00042999,2]
[355800453,1741582002462,-480.98323487,0.00042999,31]
[355800454,1741582012840,10000.0,0.00025,10]
[355800455,1741582035933,6362.98,0.00025,10]
[355800532,1741582243191,-366.430837,0.0003589,2]
[355800533,1741582243201,-500.0,0.00038709,2]
[355800534,1741582243209,-587.81045717,0.000389,8]
[355800535,1741582243221,-685.13253074,0.000389,8]
[355800536,1741582243231,-313.33428488,0.00040899,2]
[355800537,1741582243240,-366.430837,0.00041211,2]
[355800538,1741582243250,-4395.49433218,0.00042999,2]
[355800539,1741582243262,-370.5885,0.00042999,2]
[355800550,1741583360101,-348.109295,0.0003589,2]
[355800551,1741583360137,-263.1135048,0.00036454,2]
[355800552,1741583360163,-987.06990996,0.000379,8]
[355800591,1741583432180,-313.33428488,0.000358,2]
[355800592,1741583432190,-3968.7799143,0.00036041,2]
[355800594,1741583432200,-243.44164501,0.000379,8]
[355800596,1741583432210,-218.49934404,0.00038835,113]
[355800598,1741583432221,-500.0,0.00038934,2]
[355800599,1741583432232,-500.0,0.00038934,15]
[355800600,1741583432241,-500.0,0.00038934,2]
[355800601,1741583432251,-500.0,0.00038934,2]
[355800602,1741583432261,-500.0,0.00038934,15]
[355800603,1741583432270,-207.87210683,0.00038934,2]
[355800604,1741583432280,-500.0,0.00038934,2]
[355800605,1741583432291,-192.09812128,0.00038934,15]
[355800606,1741583432300,-500.0,0.00038934,2]
[355800607,1741583432310,-500.0,0.00038934,2]
[355800608,1741583432320,-500.0,0.00038934,2]
[355800609,1741583432330,-500.0,0.00038934,2]
[355800610,1741583432340,-500.0,0.00038934,2]
[355800611,1741583432350,-500.0,0.00038934,2]
[355800612,1741583432359,-500.0,0.00038934,2]
[355800613,1741583432370,-500.0,0.00038934,2]
[355800614,1741583432379,-5827.62131864,0.00038935,2]
[355800615,1741583432391,-12645.77003188,0.00038935,2]
[355800625,1741583438045,-444.32170257,0.00038934,2]
[355800626,1741583438056,-500.0,0.00038934,2]
[355800627,1741583438066,-500.0,0.00038934,2]
[355800628,1741583438076,-1223.36653753,0.00038935,2]
[355800653,1741583442730,-303.24211195,0.00038935,2]
[355800654,1741583442740,-7665.42785973,0.00038937,2]
[355800657,1741583443281,-5075.25945406,0.00038937,2]
[355800681,1741583630101,10000.0,0.00025,10]
[355800682,1741583643902,10000.0,0.0002,30]
[355800683,1741583652121,9335.9853234,0.00025,10]
[355800684,1741583652147,664.0146766,0.00025,10]
[355800688,1741584313372,-204.40897,0.00027,120]
[355800692,1741584525238,-171.67716314,0.000255,2]
[355800700,1741584574688,277.77857073,0.000249,2]
[355800739,1741584632443,-678.17328785,0.000255,2]
[355800741,1741584632454,-1308.31402407,0.0002799,2]
[355800743,1741584632464,-277.77857073,0.000299,2]
[355800745,1741584632474,-1189.49450307,0.000299,5]
[355800747,1741584632484,-517.46851467,0.00033,30]
[355800749,1741584632494,-2070.0869461,0.00033228,2]
[355800751,1741584632504,-277.77857073,0.000349,2]
[355800753,1741584632514,-330.70383,0.0003589,2]
[355800755,1741584632524,-4793.04160564,0.00036,30]
[355800757,1741584632534,-1807.70661669,0.00036192,2]
[355800759,1741584632544,-593.76,0.00036271,3]
[355800761,1741584632554,-500.0,0.00036281,2]
[355800763,1741584632563,-500.0,0.00036281,2]
[355800764,1741584632573,-500.0,0.00036281,2]
[355800765,1741584632582,-500.0,0.00036281,2]
[355800766,1741584632593,-500.0,0.00036281,2]
[355800768,1741584632602,-500.0,0.00036281,2]
[355800769,1741584632612,-500.0,0.00036281,2]
[355800771,1741584632622,-500.0,0.00036281,2]
[355800772,1741584632631,-500.0,0.00036281,2]
[355800773,1741584632641,-500.0,0.00036281,2]
[355800774,1741584632651,-467.24092925,0.00036281,2]
[355800786,1741584643369,-32.61821857,0.00036191,15]
[355800787,1741584643381,-467.38178143,0.00036191,15]
[355800788,1741584643391,-738.11497996,0.00036191,2]
[355800789,1741584643401,-500.0,0.00036191,2]
[355800790,1741584643410,-160.31494633,0.00036191,15]
[355800791,1741584643420,-500.0,0.00036191,15]
[355800792,1741584643430,-500.0,0.00036191,2]